fUST/lending_fUST_20240328
["ID","MTS","AMOUNT","RATE_DAILY","PERIOD"]
[320850058,1711631433081,-500.0,0.00049999,120]
[320850060,1711631433090,-369.21771834,0.00049999,120]
[320850097,1711631438543,-130.78228166,0.00049999,120]
[320850099,1711631438552,-300.41242852,0.00049999,120]
[320850102,1711631438564,-199.58757148,0.00049999,120]
[320850104,1711631438573,-543.0,0.00049999,120]
[320850105,1711631438582,-500.0,0.00049999,120]
[320850108,1711631438593,-500.0,0.00049999,120]
[320850110,1711631438602,-500.0,0.00049999,120]
[320850113,1711631438611,-766.66,0.00049999,2]
[320850116,1711631438622,-500.0,0.00049999,120]
[320850119,1711631438631,-1109.01717106,0.0005,61]
[320850122,1711631438639,-41899.77889839,0.0005,60]
[320850199,1711631443850,-9560.72980882,0.0005,60]
[320850200,1711631443862,-1263.13881674,0.0005,60]
[320850201,1711631443889,-0.01446811,0.0005,60]
[320850207,1711631446666,-4282.31187495,0.00049999,4]
[320850208,1711631446675,-252788.7407036,0.0005,60]
[320850209,1711631446685,-298.31985996,0.000698,2]
[320850210,1711631446694,-4003.5234436,0.000699,30]
[320850211,1711631446704,-500.0,0.0007,30]
[320850212,1711631446714,-164.27204395,0.00070285,4]
[320850213,1711631446724,-3854.75572943,0.00072,120]
[320850214,1711631446733,-1550.0,0.00072,120]
[320850215,1711631446742,-1867.0,0.000722,30]
[320850216,1711631446751,-171.99052288,0.00072249,7]
[320850217,1711631446760,-1000.0,0.0007225,2]
[320850218,1711631446770,-558.07257721,0.00072275,7]
[320850219,1711631446779,-2647.83724271,0.00072277,7]
[320850220,1711631446788,-39403.88823826,0.0007231,2]
[320850273,1711632632987,-155.01085076,0.00038041,4]
[320850275,1711632632996,-2115.72508144,0.00038042,4]
[320850277,1711632633006,-1055.6371455,0.00038042,4]
[320850279,1711632633015,-258.30573929,0.00038042,4]
[320850281,1711632633024,-370.74377447,0.00038042,4]
[320850283,1711632633033,-752.98993587,0.00038043,4]
[320850285,1711632633045,-60.44501495,0.00038043,4]
[320850288,1711632633058,-191.3451459,0.00038043,4]
[320850290,1711632633068,-391.71628924,0.00038044,4]
[320850292,1711632633077,-363.75413256,0.00038045,4]
[320850294,1711632633087,-841.68839585,0.00038045,4]
[320850296,1711632633097,-830.67030105,0.00038046,4]
[320850297,1711632633108,-212.14744496,0.00038046,4]
[320850299,1711632633117,-1162.19072962,0.00038069,4]
[320850301,1711632633133,-248.39557539,0.0003807,4]
[320850303,1711632633143,-248.39557539,0.00038071,4]
[320850304,1711632633153,-569.0,0.00038072,30]
[320850306,1711632633163,-1465.53,0.0004,3]
[320850308,1711632633173,-283.88065759,0.0004967,4]
[320850310,1711632633184,-1999.16995503,0.00049671,4]
[320850312,1711632633195,-1914.18848453,0.00049673,4]
[320850314,1711632633205,-534.68239289,0.00049673,4]
[320850316,1711632633217,-33.38674169,0.00049673,4]
[320850318,1711632633227,-793.52288043,0.00049674,4]
[320850320,1711632633237,-156.205,0.0004999,2]
[320850322,1711632633246,-150.0,0.00068493,120]
[320850324,1711632633256,-282.02537788,0.00069315,120]
[320850327,1711632633273,-17.97462212,0.00069315,120]
[320850329,1711632633282,-450.0,0.00070136,120]
[320850331,1711632633291,-600.0,0.00070958,120]
[320850333,1711632633301,-500.0,0.00071,120]
[320850335,1711632633310,-750.0,0.0007178,120]
[320850337,1711632633319,-166.52254878,0.000719,2]
[320850339,1711632633328,-3133.47326553,0.00071999,7]
[320850341,1711632633337,-500.0,0.00072,120]
[320850343,1711632633347,-500.0,0.00072,120]
[320850345,1711632633356,-500.0,0.00072,120]
[320850347,1711632633365,-310.40083583,0.00072,120]
[320850349,1711632633377,-160.22142787,0.00072,120]
[320850351,1711632633387,-40000.0,0.00072,7]
[320850353,1711632633396,-500.0,0.00072,120]
[320850355,1711632633405,-166.52254878,0.00072,2]
[320850357,1711632633414,-166.52254878,0.000721,2]
[320850359,1711632633424,-3452.29757878,0.000722,120]
[320850360,1711632633433,-6568.10688878,0.000722,120]
[320850362,1711632633443,-166.52254878,0.000722,2]
[320850364,1711632633453,-227.0,0.00072284,120]
[320850366,1711632633462,-23186.44428547,0.00072285,2]
[320850367,1711632633471,-166.52254878,0.000723,2]
[320850368,1711632633480,-554.50858553,0.00072307,61]
[320850370,1711632633490,-222.89223593,0.00072307,7]
[320850372,1711632633499,-170.7536872,0.00072307,7]
[320850373,1711632633509,-3793.08240399,0.00072307,7]
[320850375,1711632633518,-175.79218748,0.00072307,7]
[320850376,1711632633528,-687.18971285,0.00072307,7]
[320850378,1711632633538,-169.74854406,0.00072307,7]
[320850379,1711632633547,-407.48152806,0.00072307,7]
[320850381,1711632633557,-308.52718183,0.00072307,7]
[320850382,1711632633566,-238.89982239,0.00072307,7]
[320850384,1711632633577,-669.71033152,0.00072307,7]
[320850385,1711632633587,-155.52652251,0.00072307,7]
[320850386,1711632633597,-157.81403051,0.00072307,7]
[320850387,1711632633607,-491.98157786,0.00072307,7]
[320850388,1711632633622,-820.44937647,0.00072307,7]
[320850389,1711632633632,-180.00507239,0.00072307,7]
[320850390,1711632633641,-191.78729025,0.00072307,7]
[320850391,1711632633652,-203.4180924,0.00072307,7]
[320850392,1711632633663,-1232.68534455,0.00072307,7]
[320850393,1711632633673,-599.63041092,0.00072307,7]
[320850394,1711632633684,-155.68160153,0.00072307,7]
[320850395,1711632633694,-325.19839158,0.00072307,7]
[320850396,1711632633705,-166.22828959,0.00072307,7]
[320850397,1711632633716,-180.24455085,0.00072307,7]
[320850398,1711632633727,-308.98539759,0.00072307,7]
[320850399,1711632633737,-155.0,0.00072307,7]
[320850400,1711632633748,-2584.50312367,0.00072307,7]
[320850401,1711632633758,-1049.2184467,0.00072307,7]
[320850402,1711632633768,-500.0,0.00072308,120]
[320850403,1711632633778,-193.49983388,0.00072308,120]
[320850404,1711632633788,-759.46506956,0.00072308,7]
[320850405,1711632633798,-155.63920145,0.00072308,7]
[320850406,1711632633809,-280.8975116,0.00072308,7]
[320850407,1711632633905,-155.19327659,0.00072308,7]
[320850408,1711632633919,-155.46378247,0.00072308,7]
[320850409,1711632633929,-1665.91730218,0.00072309,7]
[320850421,1711632638747,-1975.54503106,0.00072309,7]
[320850422,1711632638765,-61886.63061767,0.00072309,7]
[320850423,1711632638776,-1010.40221802,0.0007231,7]
[320850424,1711632638786,-758.95355074,0.0007231,30]
[320850425,1711632638796,-2909.14940549,0.0007231,7]
[320850426,1711632638806,-422.56115201,0.00072381,7]
[320850427,1711632638815,-150.40507625,0.00072381,120]
[320850428,1711632638824,-2417.60919791,0.00072383,120]
[320850429,1711632638835,-155.34921763,0.00072383,2]
[320850430,1711632638844,-155.10352529,0.00072384,7]
[320850431,1711632638854,-13496.36004433,0.00072385,120]
[320850432,1711632638864,-40522.53027559,0.00072385,120]
[320850433,1711632638875,-40522.53027559,0.000724,120]
[320850434,1711632638888,-387.918526,0.0007241,120]
[320850435,1711632638898,-387.918526,0.0007241,120]
[320850436,1711632638910,-40522.53027559,0.0007241,120]
[320850437,1711632638920,-40522.53027559,0.0007241,120]
[320850438,1711632638930,-40522.53027559,0.00072439,120]
[320850439,1711632638940,-151.0,0.00072439,120]
[320850440,1711632638949,-151.0,0.00072439,120]
[320850441,1711632638958,-271.3,0.00072439,120]
[320850442,1711632638967,-271.3,0.00072439,120]
[320850443,1711632638976,-387.918526,0.00072439,120]
[320850444,1711632638986,-387.918526,0.00072439,120]
[320850445,1711632638997,-40522.53027559,0.00072481,120]
[320850446,1711632639006,-570.60094814,0.00072602,120]
[320850447,1711632639015,-1000.0,0.00072987,4]
[320850448,1711632639025,-500.0,0.0007315,120]
[320850449,1711632639034,-158.64317731,0.0007316,120]
[320850450,1711632639043,-150.0,0.00073381,120]
[320850451,1711632639052,-1810.05694933,0.00073602,30]
[320850452,1711632639062,-2640.58967292,0.00073872,2]
[320850453,1711632639072,-600.0,0.000739,4]
[320850454,1711632639081,-6000.0,0.000739,8]
[320850455,1711632639090,-1524.428997,0.000739,60]
[320850456,1711632639100,-151.0,0.000739,120]
[320850457,1711632639109,-151.0,0.000739,120]
[320850458,1711632639118,-271.3,0.000739,120]
[320850459,1711632639132,-271.3,0.000739,120]
[320850460,1711632639141,-387.918526,0.000739,120]
[320850461,1711632639151,-387.918526,0.000739,120]
[320850462,1711632639161,-175.74,0.0007395,35]
[320850463,1711632639171,-150.5,0.0007395,35]
[320850464,1711632639181,-150.5,0.0007395,7]
[320850465,1711632639191,-150.5,0.0007396,35]
[320850466,1711632639200,-150.5,0.0007396,35]
[320850467,1711632639209,-150.5,0.0007396,7]
[320850468,1711632639218,-150.5,0.0007397,35]
[320850469,1711632639228,-150.5,0.0007397,35]
[320850470,1711632639237,-155.54,0.0007397,35]
[320850471,1711632639247,-150.5,0.0007397,7]
[320850472,1711632639257,-324.60012622,0.00073971,2]
[320850473,1711632639267,-1000.0,0.00073971,120]
[320850474,1711632639277,-632.06819672,0.00073971,7]
[320850475,1711632639286,-500.0,0.00073972,120]
[320850476,1711632639295,-500.0,0.00073972,120]
[320850477,1711632639304,-503.92132037,0.00073972,120]
[320850478,1711632639313,-500.0,0.00073972,120]
[320850479,1711632639323,-500.0,0.00073972,120]
[320850480,1711632639332,-500.0,0.00073972,120]
[320850481,1711632639342,-258.36897037,0.00073972,120]
[320850482,1711632639352,-500.0,0.00073972,120]
[320850483,1711632639361,-500.0,0.00073972,120]
[320850484,1711632639370,-500.0,0.00073972,120]
[320850485,1711632639382,-500.0,0.00073972,120]
[320850486,1711632639391,-500.0,0.00073972,120]
[320850487,1711632639399,-500.0,0.00073972,120]
[320850488,1711632639408,-500.0,0.00073972,120]
[320850489,1711632639416,-500.0,0.00073972,120]
[320850490,1711632639425,-500.0,0.00073972,120]
[320850491,1711632639435,-500.0,0.00073972,120]
[320850492,1711632639444,-408.87078475,0.00073972,120]
[320850493,1711632639453,-500.0,0.00073972,120]
[320850494,1711632639462,-500.0,0.00073972,120]
[320850495,1711632639471,-500.0,0.00073972,120]
[320850496,1711632639480,-500.0,0.00073972,120]
[320850497,1711632639489,-500.0,0.00073972,120]
[320850498,1711632639499,-500.0,0.00073972,120]
[320850499,1711632639509,-500.0,0.00073972,120]
[320850500,1711632639519,-500.0,0.00073972,120]
[320850501,1711632639529,-503.36708304,0.00073972,120]
[320850502,1711632639538,-500.0,0.00073972,120]
[320850503,1711632639547,-500.0,0.00073972,120]
[320850504,1711632639556,-500.0,0.00073972,120]
[320850505,1711632639565,-804.12,0.00073972,120]
[320850506,1711632639574,-804.12,0.00073972,120]
[320850507,1711632639584,-804.12,0.00073972,120]
[320850508,1711632639593,-500.0,0.00073972,120]
[320850509,1711632639601,-804.12,0.00073972,120]
[320850510,1711632639610,-500.0,0.00073972,120]
[320850511,1711632639620,-804.12,0.00073972,120]
[320850512,1711632639635,-500.0,0.00073972,120]
[320850513,1711632639644,-500.0,0.00073972,120]
[320850514,1711632639653,-804.12,0.00073972,120]
[320850515,1711632639662,-804.12,0.00073972,120]
[320850516,1711632639672,-500.0,0.00073972,120]
[320850517,1711632639681,-500.0,0.00073972,120]
[320850518,1711632639690,-804.12,0.00073972,120]
[320850519,1711632639699,-500.0,0.00073972,120]
[320850520,1711632639708,-804.12,0.00073972,120]
[320850521,1711632639719,-500.0,0.00073972,120]
[320850522,1711632639728,-804.12,0.00073972,120]
[320850523,1711632639738,-644.70582039,0.00073972,120]
[320850524,1711632639747,-804.12,0.00073972,120]
[320850525,1711632639756,-804.12,0.00073972,120]
[320850526,1711632639765,-804.12,0.00073972,120]
[320850527,1711632639775,-500.0,0.00073972,120]
[320850528,1711632639783,-804.12,0.00073972,120]
[320850529,1711632639793,-500.0,0.00073972,120]
[320850530,1711632639802,-804.12,0.00073972,120]
[320850531,1711632639811,-259.75,0.00073972,120]
[320850532,1711632639820,-804.12,0.00073972,120]
[320850533,1711632639829,-804.12,0.00073972,120]
[320850534,1711632639840,-500.0,0.00073972,120]
[320850535,1711632639851,-804.12,0.00073972,120]
[320850536,1711632639860,-500.0,0.00073972,120]
[320850537,1711632639869,-500.0,0.00073972,120]
[320850538,1711632639882,-502.02086045,0.00073972,120]
[320850539,1711632639891,-500.0,0.00073972,120]
[320850540,1711632639900,-500.0,0.00073972,120]
[320850541,1711632639909,-500.0,0.00073972,120]
[320850542,1711632639920,-200.59020867,0.00073972,120]
[320850543,1711632639929,-804.12,0.00073972,120]
[320850544,1711632639938,-804.12,0.00073972,120]
[320850545,1711632639947,-804.12,0.00073972,120]
[320850546,1711632639957,-804.12,0.00073972,120]
[320850547,1711632639966,-804.12,0.00073972,120]
[320850548,1711632639976,-804.35064799,0.00073972,120]
[320850549,1711632639986,-500.0,0.00073972,120]
[320850550,1711632639995,-502.16448029,0.00073972,120]
[320850551,1711632640006,-500.0,0.00073972,120]
[320850552,1711632640017,-501.76097538,0.00073972,120]
[320850553,1711632640026,-500.0,0.00073972,120]
[320850554,1711632640035,-501.50597731,0.00073972,120]
[320850555,1711632640044,-500.0,0.00073972,120]
[320850556,1711632640053,-500.0,0.00073972,120]
[320850557,1711632640062,-500.0,0.00073972,120]
[320850558,1711632640071,-500.0,0.00073972,120]
[320850559,1711632640158,-500.0,0.00073972,120]
[320850560,1711632640168,-500.0,0.00073972,120]
[320850561,1711632640177,-500.0,0.00073972,120]
[320850562,1711632640187,-500.0,0.00073972,120]
[320850563,1711632640196,-487.15,0.00073972,120]
[320850564,1711632640205,-500.0,0.00073972,120]
[320850566,1711632640214,-500.0,0.00073972,120]
[320850567,1711632640223,-501.95049191,0.00073972,120]
[320850569,1711632640232,-500.0,0.00073972,120]
[320850571,1711632640242,-500.0,0.00073972,120]
[320850573,1711632640251,-500.0,0.00073972,120]
[320850576,1711632640260,-500.0,0.00073972,120]
[320850578,1711632640269,-393.02994276,0.00073972,120]
[320850579,1711632640279,-500.0,0.00073972,120]
[320850580,1711632640288,-502.12793628,0.00073972,120]
[320850581,1711632640296,-500.0,0.00073972,120]
[320850582,1711632640305,-500.33374769,0.00073972,120]
[320850583,1711632640315,-500.0,0.00073972,120]
[320850585,1711632640324,-501.68097568,0.00073972,120]
[320850587,1711632640333,-500.0,0.00073972,120]
[320850589,1711632640342,-518.94341513,0.00073972,120]
[320850591,1711632640352,-500.0,0.00073972,120]
[320850593,1711632640361,-500.0,0.00073972,120]
[320850595,1711632640370,-500.0,0.00073972,120]
[320850597,1711632640383,-500.74524811,0.00073972,120]
[320850598,1711632640393,-500.0,0.00073972,120]
[320850600,1711632640403,-345.60792594,0.00073972,120]
[320850602,1711632640411,-501.00385866,0.00073972,120]
[320850604,1711632640421,-500.0,0.00073972,120]
[320850606,1711632640430,-500.0,0.00073972,120]
[320850608,1711632640439,-500.0,0.00073972,120]
[320850610,1711632640448,-500.0,0.00073972,120]
[320850612,1711632640457,-500.0,0.00073972,120]
[320850614,1711632640466,-500.0,0.00073972,120]
[320850616,1711632640475,-500.0,0.00073972,120]
[320850618,1711632640485,-500.0,0.00073972,120]
[320850620,1711632640494,-500.0,0.00073972,120]
[320850622,1711632640504,-500.0,0.00073972,120]
[320850624,1711632640513,-500.0,0.00073972,120]
[320850626,1711632640523,-500.0,0.00073972,120]
[320850628,1711632640531,-500.0,0.00073972,120]
[320850630,1711632640541,-500.0,0.00073972,120]
[320850632,1711632640551,-558.11,0.00073972,120]
[320850635,1711632640561,-500.0,0.00073972,120]
[320850637,1711632640571,-371.14812366,0.00073972,120]
[320850639,1711632640580,-500.0,0.00073972,120]
[320850641,1711632640590,-500.0,0.00073972,120]
[320850643,1711632640599,-500.0,0.00073972,120]
[320850645,1711632640608,-500.0,0.00073972,120]
[320850646,1711632640618,-500.0,0.00073972,120]
[320850648,1711632640630,-500.0,0.00073972,120]
[320850649,1711632640642,-500.0,0.00073972,120]
[320850650,1711632640651,-500.0,0.00073972,120]
[320850651,1711632640660,-500.0,0.00073972,120]
[320850652,1711632640671,-500.0,0.00073972,120]
[320850653,1711632640682,-207.24501136,0.00073972,120]
[320850655,1711632640690,-500.0,0.00073972,120]
[320850656,1711632640700,-500.0,0.00073972,120]
[320850657,1711632640709,-500.0,0.00073972,120]
[320850658,1711632640721,-500.0,0.00073972,120]
[320850659,1711632640731,-500.0,0.00073972,120]
[320850660,1711632640739,-500.0,0.00073972,120]
[320850661,1711632640749,-500.0,0.00073972,120]
[320850662,1711632640758,-500.0,0.00073972,120]
[320850663,1711632640768,-500.0,0.00073972,120]
[320850664,1711632640777,-403.22502853,0.00073972,120]
[320850665,1711632640788,-500.0,0.00073972,7]
[320850666,1711632640798,-500.0,0.00073972,7]
[320850667,1711632640809,-501.73069062,0.00073972,120]
[320850668,1711632640818,-500.0,0.00073972,7]
[320850669,1711632640829,-500.0,0.00073972,7]
[320850670,1711632640840,-500.0,0.00073972,120]
[320850671,1711632640850,-500.0,0.00073972,120]
[320850672,1711632640859,-500.0,0.00073972,120]
[320850673,1711632640868,-502.81429633,0.00073972,120]
[320850674,1711632640880,-421.54478705,0.00073972,120]
[320850675,1711632640890,-500.0,0.00073972,120]
[320850676,1711632640898,-501.15405258,0.00073972,120]
[320850677,1711632640908,-500.0,0.00073972,120]
[320850678,1711632640917,-501.38743597,0.00073972,120]
[320850679,1711632640926,-500.0,0.00073972,120]
[320850680,1711632640936,-500.0,0.00073972,120]
[320850681,1711632640945,-500.0,0.00073972,120]
[320850682,1711632640955,-501.99239693,0.00073972,120]
[320850683,1711632640965,-500.0,0.00073972,120]
[320850684,1711632640974,-500.0,0.00073972,120]
[320850685,1711632640984,-500.0,0.00073972,120]
[320850686,1711632640993,-500.0,0.00073972,120]
[320850687,1711632641002,-500.0,0.00073972,120]
[320850688,1711632641011,-237.99968336,0.00073972,120]
[320850689,1711632641021,-500.0,0.00073972,7]
[320850690,1711632641030,-500.0,0.00073972,7]
[320850691,1711632641039,-500.0,0.00073972,7]
[320850692,1711632641049,-607.06066145,0.00073972,7]
[320850693,1711632641058,-500.0,0.00073972,120]
[320850694,1711632641067,-500.0,0.00073972,120]
[320850695,1711632641076,-500.0,0.00073972,120]
[320850696,1711632641086,-500.0,0.00073972,120]
[320850697,1711632641095,-500.0,0.00073972,120]
[320850698,1711632641105,-570.71,0.00073972,120]
[320850699,1711632641114,-203.27474065,0.00073972,120]
[320850700,1711632641123,-500.0,0.00073972,120]
[320850701,1711632641134,-500.0,0.00073972,120]
[320850702,1711632641144,-504.0256342,0.00073972,120]
[320850703,1711632641153,-500.0,0.00073972,120]
[320850704,1711632641163,-405.6693579,0.00073972,120]
[320850705,1711632641172,-500.0,0.00073972,120]
[320850706,1711632641181,-500.0,0.00073972,120]
[320850707,1711632641191,-519.72218021,0.00073972,120]
[320850708,1711632641200,-500.0,0.00073972,120]
[320850709,1711632641210,-500.0,0.00073972,120]
[320850710,1711632641220,-500.0,0.00073972,120]
[320850711,1711632641229,-500.0,0.00073972,120]
[320850712,1711632641240,-500.0,0.00073972,120]
[320850713,1711632641249,-500.0,0.00073972,120]
[320850714,1711632641259,-500.0,0.00073972,120]
[320850715,1711632641267,-500.0,0.00073972,120]
[320850716,1711632641277,-500.0,0.00073972,120]
[320850717,1711632641286,-500.0,0.00073972,120]
[320850718,1711632641296,-500.0,0.00073972,120]
[320850719,1711632641305,-500.0,0.00073972,120]
[320850720,1711632641314,-320.09795557,0.00073972,120]
[320850721,1711632641323,-500.0,0.00073972,120]
[320850722,1711632641333,-500.0,0.00073972,120]
[320850723,1711632641342,-500.0,0.00073972,120]
[320850724,1711632641352,-500.0,0.00073972,120]
[320850725,1711632641361,-500.0,0.00073972,120]
[320850726,1711632641370,-500.0,0.00073972,120]
[320850727,1711632641381,-500.0,0.00073972,120]
[320850728,1711632641390,-500.0,0.00073972,120]
[320850729,1711632641399,-500.0,0.00073972,120]
[320850730,1711632641408,-500.0,0.00073972,120]
[320850731,1711632641417,-501.68955675,0.00073972,120]
[320850732,1711632641427,-580.97471259,0.00073972,120]
[320850733,1711632641436,-500.0,0.00073972,120]
[320850734,1711632641445,-500.0,0.00073972,120]
[320850735,1711632641455,-501.5309912,0.00073972,120]
[320850736,1711632641464,-393.77638511,0.00073972,120]
[320850737,1711632641473,-500.0,0.00073972,120]
[320850738,1711632641483,-500.0,0.00073972,120]
[320850739,1711632641492,-500.0,0.00073972,120]
[320850740,1711632641501,-500.0,0.00073972,120]
[320850741,1711632641510,-500.0,0.00073972,120]
[320850742,1711632641520,-501.95496196,0.00073972,120]
[320850743,1711632641530,-500.0,0.00073972,120]
[320850744,1711632641540,-500.0,0.00073972,120]
[320850745,1711632641549,-500.0,0.00073972,120]
[320850746,1711632641559,-500.0,0.00073972,120]
[320850747,1711632641568,-368.03284126,0.00073972,120]
[320850748,1711632641578,-500.0,0.00073972,120]
[320850749,1711632641588,-500.0,0.00073972,120]
[320850750,1711632641597,-500.0,0.00073972,120]
[320850751,1711632641606,-500.0,0.00073972,120]
[320850752,1711632641616,-500.0,0.00073972,120]
[320850753,1711632641627,-500.0,0.00073972,120]
[320850754,1711632641645,-500.0,0.00073972,120]
[320850755,1711632641654,-502.78,0.00073972,120]
[320850756,1711632641664,-500.0,0.00073972,120]
[320850757,1711632641674,-448.75120669,0.00073972,120]
[320850758,1711632641683,-1000.0,0.00073972,120]
[320850759,1711632641692,-500.0,0.00073972,120]
[320850760,1711632641701,-500.22533911,0.00073972,120]
[320850761,1711632641710,-500.0,0.00073972,120]
[320850762,1711632641719,-500.0,0.00073972,120]
[320850763,1711632641728,-500.0,0.00073972,120]
[320850764,1711632641737,-448.43,0.00073972,120]
[320850765,1711632641747,-500.0,0.00073972,120]
[320850766,1711632641756,-500.0,0.00073972,120]
[320850767,1711632641765,-408.30603434,0.00073972,120]
[320850768,1711632641775,-500.0,0.00073972,120]
[320850769,1711632641784,-500.0,0.00073972,120]
[320850770,1711632641793,-500.0,0.00073972,120]
[320850771,1711632641802,-500.0,0.00073972,120]
[320850772,1711632641811,-151.0,0.00073972,120]
[320850773,1711632641820,-151.0,0.00073972,120]
[320850774,1711632641829,-151.0,0.00073972,120]
[320850775,1711632641837,-151.47252526,0.00073972,120]
[320850776,1711632641846,-500.0,0.00073972,120]
[320850777,1711632641855,-500.0,0.00073972,120]
[320850778,1711632641864,-500.0,0.00073972,120]
[320850779,1711632641873,-500.0,0.00073972,120]
[320850780,1711632641886,-500.0,0.00073972,120]
[320850781,1711632641895,-500.0,0.00073972,120]
[320850782,1711632641904,-494.65,0.00073972,120]
[320850783,1711632641913,-500.0,0.00073972,120]
[320850784,1711632641923,-500.0,0.00073972,120]
[320850785,1711632642005,-500.0,0.00073972,120]
[320850786,1711632642015,-590.17439216,0.00073972,120]
[320850787,1711632642025,-500.0,0.00073972,120]
[320850788,1711632642034,-500.0,0.00073972,120]
[320850789,1711632642043,-500.0,0.00073972,120]
[320850790,1711632642053,-500.0,0.00073972,120]
[320850791,1711632642062,-500.0,0.00073972,120]
[320850792,1711632642072,-505.84339448,0.00073972,120]
[320850793,1711632642083,-500.0,0.00073972,120]
[320850794,1711632642092,-500.0,0.00073972,120]
[320850795,1711632642101,-500.0,0.00073972,120]
[320850796,1711632642111,-618.17,0.00073972,120]
[320850797,1711632642120,-500.0,0.00073972,120]
[320850798,1711632642130,-208.18781116,0.00073972,120]
[320850799,1711632642142,-500.0,0.00073972,120]
[320850800,1711632642151,-500.0,0.00073972,120]
[320850801,1711632642161,-265.97739141,0.00073972,120]
[320850802,1711632642170,-500.0,0.00073972,120]
[320850803,1711632642179,-500.0,0.00073972,120]
[320850804,1711632642189,-500.0,0.00073972,120]
[320850805,1711632642198,-500.0,0.00073972,120]
[320850806,1711632642208,-500.0,0.00073972,120]
[320850807,1711632642218,-500.3803535,0.00073972,120]
[320850808,1711632642228,-500.0,0.00073972,120]
[320850809,1711632642238,-500.0,0.00073972,120]
[320850810,1711632642247,-500.0,0.00073972,120]
[320850811,1711632642257,-558.0471056,0.00073972,120]
[320850812,1711632642267,-500.0,0.00073972,120]
[320850813,1711632642276,-500.0,0.00073972,120]
[320850814,1711632642286,-500.0,0.00073972,120]
[320850815,1711632642296,-500.0,0.00073972,120]
[320850816,1711632642306,-500.0,0.00073972,120]
[320850817,1711632642315,-500.0,0.00073972,120]
[320850818,1711632642324,-500.0,0.00073972,120]
[320850819,1711632642334,-162.89287861,0.00073972,120]
[320850820,1711632642344,-500.0,0.00073972,120]
[320850821,1711632642353,-500.0,0.00073972,120]
[320850822,1711632642362,-500.0,0.00073972,120]
[320850823,1711632642370,-342.63275385,0.00073972,120]
[320850824,1711632642379,-500.0,0.00073972,120]
[320850825,1711632642391,-500.0,0.00073972,120]
[320850826,1711632642401,-500.0,0.00073972,120]
[320850827,1711632642411,-500.0,0.00073972,120]
[320850828,1711632642420,-500.0,0.00073972,120]
[320850829,1711632642429,-346.28,0.00073972,120]
[320850830,1711632642438,-500.0,0.00073972,120]
[320850831,1711632642447,-500.0,0.00073972,120]
[320850832,1711632642456,-500.0,0.00073972,120]
[320850833,1711632642465,-500.0,0.00073972,120]
[320850834,1711632642474,-500.0,0.00073972,120]
[320850835,1711632642483,-500.0,0.00073972,120]
[320850836,1711632642492,-500.0,0.00073972,120]
[320850837,1711632642501,-500.0,0.00073972,120]
[320850838,1711632642510,-500.0,0.00073972,120]
[320850839,1711632642519,-642.66243177,0.00073972,120]
[320850840,1711632642528,-500.0,0.00073972,120]
[320850841,1711632642537,-151.0,0.00073972,120]
[320850842,1711632642546,-500.0,0.00073972,120]
[320850843,1711632642555,-151.0,0.00073972,120]
[320850844,1711632642565,-500.0,0.00073972,120]
[320850845,1711632642573,-151.0,0.00073972,120]